[Event "NOR-ch Various 2019"]
[Site "Larvik"]
[Date "2019.07.12"]
[Round "8.11"]
[White "Nordlov, Jorgen"]
[Black "Nygard, Jacob Ounji"]
[Result "0-1"]
[ECO "D40"]
[WhiteElo "1263"]
[BlackElo "1377"]
[Annotator "NA"]
[PlyCount "58"]
[EventDate "2019.07.06"]
[EventType "swiss"]
[EventCountry "NOR"]
[SourceTitle "playchess.com"]
[Source "ChessBase"]
[SourceQuality "1"]
[TimeControl "40/5400+30:1800+30"]

1. d4 {[%emt 0:00:00]} Nf6 {[%emt 0:00:00]} 2. Nf3 {[%emt 0:00:00]} e6 {[%emt 0:00:00]} 3. c4 {[%emt 0:00:00]} c5 {[%emt 0:00:41]} 4. e3 {[%emt 0:00:56]} Nc6 {[%emt 0:00:56]} 5. Nc3 {[%emt 0:01:08]} d5 {[%emt 0:01:17]} 6. Be2 {[%emt 0:02:46]} b6 {[%emt 0:01:42]} 7. cxd5 {[%emt 0:02:07]} Nxd5 {[%emt 0:01:45]} 8. Bb5 {[%emt 0:01:01]} Bb7 {[%emt 0:02:45]} 9. Ne5 {[%emt 0:01:32]} Rc8 {[%emt 0:00:50]} 10. Qa4 {[%emt 0:03:55]} Ndb4 {[%emt 0:04:52]} 11. a3 {[%emt 0:03:06]} a6 {[%emt 0:00:11]} 12. Bxc6+ {[%emt 0:01:29]} Nxc6 {[%emt 0:05:23]} 13. Ne2 {[%emt 0:02:33]} b5 {[%emt 0:01:01]} 14. Qc2 {[%emt 0:00:21]} cxd4 {[%emt 0:01:14]} 15. Nxc6 {[%emt 0:01:20]} Rxc6 {[%emt 0:00:13]} 16. Qd3 {[%emt 0:01:18]} dxe3 {[%emt 0:04:03]} 17. Qxd8+ {[%emt 0:00:50]} Kxd8 {[%emt 0:00:06]} 18. Bxe3 {[%emt 0:00:31]} Rc2 {[%emt 0:01:02]} 19. Rd1+ {[%emt 0:01:06]} Ke7 {[%emt 0:00:19]} 20. f3 {[%emt 0:04:33]} g6 {[%emt 0:04:27]} 21. b4 {[%emt 0:00:20]} Bg7 {[%emt 0:01:09]} 22. Bc5+ {[%emt 0:03:46]} Ke8 {[%emt 0:00:48]} 23. Kf2 {[%emt 0:04:29]} Bd5 {[%emt 0:03:03]} 24. Ke3 {[%emt 0:03:50]} Bh6+ {[%emt 0:06:01]} 25. Kd3 {[%emt 0:01:20]} Ra2 {[%emt 0:00:58]} 26. Ra1 {[%emt 0:00:48]} Rd2+ {[%emt 0:00:55]} 27. Kc3 {[%emt 0:01:48]} Rxe2 {[%emt 0:00:17]} 28. a4 {[%emt 0:00:35]} Bg7+ {[%emt 0:01:01]} 29. Kd3 {[%emt 0:00:57]} Bc4# {[%emt 0:00:06] Kd4} 0-1

[Event "NOR-ch Various 2019"]
[Site "Larvik"]
[Date "2019.07.12"]
[Round "8.12"]
[White "Lund, Scott Macody"]
[Black "Soderholm, Markus"]
[Result "1-0"]
[ECO "A34"]
[WhiteElo "1389"]
[BlackElo "1329"]
[Annotator "NA"]
[PlyCount "39"]
[EventDate "2019.07.06"]
[EventType "swiss"]
[EventCountry "NOR"]
[SourceTitle "playchess.com"]
[Source "ChessBase"]
[SourceQuality "1"]
[TimeControl "40/5400+30:1800+30"]

1. c4 {[%emt 0:00:00]} c5 {[%emt 0:00:39]} 2. Nc3 {[%emt 0:00:03]} d6 {[%emt 0:01:59]} 3. g3 {[%emt 0:00:52]} Nc6 {[%emt 0:01:17]} 4. Bg2 {[%emt 0:00:48]} Nf6 {[%emt 0:01:01]} 5. Nf3 {[%emt 0:00:57]} Nd4 {[%emt 0:02:21]} 6. O-O {[%emt 0:06:06]} Qc7 {[%emt 0:01:09]} 7. d3 {[%emt 0:05:11]} e5 {[%emt 0:00:35]} 8. Bg5 {[%emt 0:07:26]} Be6 {[%emt 0:01:24]} 9. Bxf6 {[%emt 0:02:12]} gxf6 {[%emt 0:02:01]} 10. Nxd4 {[%emt 0:01:45]} exd4 {[%emt 0:00:28]} 11. Nd5 {[%emt 0:01:44]} Bxd5 {[%emt 0:00:15]} 12. Bxd5 {[%emt 0:00:36]} O-O-O {[%emt 0:00:10]} 13. Qa4 {[%emt 0:05:19]} a5 {[%emt 0:03:18]} 14. a3 {[%emt 0:01:45]} b6 {[%emt 0:04:41]} 15. Rfb1 {[%emt 0:01:12]} Rd7 {[%emt 0:01:30]} 16. b4 {[%emt 0:03:48]} cxb4 {[%emt 0:05:49]} 17. axb4 {[%emt 0:01:13]} axb4 {[%emt 0:02:17]} 18. Qa8+ {[%emt 0:05:57]} Qb8 {[%emt 0:00:13]} 19. Qc6+ {[%emt 0:00:06]} Rc7 {[%emt 0:00:44]} 20. Qe8# {[%emt 0:00:11]} 1-0

[Event "NOR-ch Various 2019"]
[Site "Larvik"]
[Date "2019.07.12"]
[Round "8.15"]
[White "Dyrnes, Jussi"]
[Black "Fossan, Petter"]
[Result "0-1"]
[ECO "D05"]
[WhiteElo "1765"]
[BlackElo "2295"]
[Annotator "NA"]
[PlyCount "108"]
[EventDate "2019.07.06"]
[EventType "swiss"]
[EventCountry "NOR"]
[SourceTitle "playchess.com"]
[Source "ChessBase"]
[SourceQuality "1"]
[TimeControl "40/5400+30:1800+30"]

1. d4 {[%emt 0:00:00]} e6 {[%emt 0:00:27]} 2. Nf3 {[%emt 0:00:00]} c5 {[%emt 0:00:15]} 3. e3 {[%emt 0:01:29]} Nf6 {[%emt 0:00:19]} 4. Bd3 {[%emt 0:01:04]} b6 {[%emt 0:04:47]} 5. Nbd2 {[%emt 0:03:36]} Bb7 {[%emt 0:00:44]} 6. c3 {[%emt 0:00:14]} Be7 {[%emt 0:00:22]} 7. O-O {[%emt 0:01:19]} O-O {[%emt 0:03:57]} 8. Re1 {[%emt 0:01:32]} d5 {[%emt 0:02:14]} 9. e4 {[%emt 0:04:38]} dxe4 {[%emt 0:04:27]} 10. Nxe4 {[%emt 0:00:55]} Nxe4 {[%emt 0:03:12]} 11. Bxe4 {[%emt 0:00:08]} Bxe4 {[%emt 0:00:03]} 12. Rxe4 {[%emt 0:00:10]} Nd7 {[%emt 0:00:05]} 13. Qc2 {[%emt 0:07:46]} cxd4 {[%emt 0:08:15]} 14. Nxd4 {[%emt 0:01:58]} Rc8 {[%emt 0:02:34]} 15. Qe2 {[%emt 0:04:43]} Nf6 {[%emt 0:02:56]} 16. Rh4 {[%emt 0:06:02]} Qd5 {[%emt 0:02:01]} 17. Be3 {[%emt 0:04:02]} Rfd8 {[%emt 0:03:28]} 18. Rh3 {[%emt 0:07:53]} Bf8 {[%emt 0:10:00]} 19. Bf4 {[%emt 0:05:11]} Qc4 {[%emt 0:10:36]} 20. Qxc4 {[%emt 0:05:24]} Rxc4 {[%emt 0:00:05]} 21. Bg5 {[%emt 0:04:38]} Be7 {[%emt 0:00:50]} 22. Re1 {[%emt 0:01:07]} h6 {[%emt 0:01:40]} 23. Bf4 {[%emt 0:04:42]} Nd5 {[%emt 0:02:13]} 24. Be5 {[%emt 0:05:57]} Rd7 {[%emt 0:04:54]} 25. Rd3 {[%emt 0:07:59]} a6 {[%emt 0:05:49]} 26. Nf3 {[%emt 0:01:55]} b5 {[%emt 0:09:53]} 27. h3 {[%emt 0:07:11]} Rb7 {[%emt 0:01:13]} 28. Nd2 {[%emt 0:01:06]} Rc8 {[%emt 0:01:08]} 29. Ne4 {[%emt 0:01:07]} Rc6 {[%emt 0:01:02]} 30. Red1 {[%emt 0:03:18]} f6 {[%emt 0:00:55]} 31. Bh2 {[%emt 0:00:46]} b4 {[%emt 0:01:29]} 32. g4 {[%emt 0:03:08]} Kf7 {[%emt 0:04:25]} 33. Kg2 {[%emt 0:00:54]} bxc3 {[%emt 0:00:17]} 34. Nxc3 {[%emt 0:00:04]} Rxb2 {[%emt 0:03:45]} 35. Nxd5 {[%emt 0:00:47]} exd5 {[%emt 0:00:04]} 36. R3d2 {[%emt 0:01:37]} Rxd2 {[%emt 0:02:50]} 37. Rxd2 {[%emt 0:00:02]} Rc5 {[%emt 0:00:30]} 38. Bf4 {[%emt 0:01:02]} Rc4 {[%emt 0:00:48]} 39. Be3 {[%emt 0:00:45]} Ke6 {[%emt 0:00:19]} 40. Bd4 {[%emt 0:01:28]} Bd6 {[%emt 0:03:45]} 41. Bb2 {[%emt 0:03:45]} Be5 {[%emt 0:01:33]} 42. Re2 {[%emt 0:00:23]} d4 {[%emt 0:01:56]} 43. Rd2 {[%emt 0:04:52]} Kd5 {[%emt 0:00:19]} 44. Kf3 {[%emt 0:00:24]} Bd6 {[%emt 0:00:55]} 45. a3 {[%emt 0:01:47]} Bxa3 {[%emt 0:02:18]} 46. Bxa3 {[%emt 0:01:01]} Rc3+ {[%emt 0:00:04]} 47. Kf4 {[%emt 0:00:22]} Rxa3 {[%emt 0:00:12]} 48. h4 {[%emt 0:00:11]} g5+ {[%emt 0:00:37]} 49. hxg5 {[%emt 0:00:18]} hxg5+ {[%emt 0:00:06]} 50. Kf5 {[%emt 0:00:19]} Rf3+ {[%emt 0:00:09]} 51. Kg6 {[%emt 0:00:11]} d3 {[%emt 0:00:13]} 52. Ra2 {[%emt 0:00:30]} Kc4 {[%emt 0:00:15]} 53. Rxa6 {[%emt 0:00:12]} d2 {[%emt 0:00:14]} 54. Rc6+ {[%emt 0:01:43]} Kd3 {[%emt 0:00:09]} 0-1

[Event "NOR-ch Various 2019"]
[Site "Larvik"]
[Date "2019.07.12"]
[Round "8.16"]
[White "Hansen, Svein E"]
[Black "Boger, Raymond"]
[Result "1/2-1/2"]
[ECO "A41"]
[WhiteElo "2064"]
[BlackElo "1957"]
[Annotator "NA"]
[PlyCount "84"]
[EventDate "2019.07.06"]
[EventType "swiss"]
[EventCountry "NOR"]
[SourceTitle "playchess.com"]
[Source "ChessBase"]
[SourceQuality "1"]
[TimeControl "40/5400+30:1800+30"]

1. d4 {[%emt 0:00:00]} g6 {[%emt 0:00:00]} 2. Nf3 {[%emt 0:01:32]} Bg7 {[%emt 0:00:00]} 3. g3 {[%emt 0:00:31]} d6 {[%emt 0:00:03]} 4. Bg2 {[%emt 0:00:12]} e5 {[%emt 0:01:18]} 5. dxe5 {[%emt 0:00:21]} dxe5 {[%emt 0:00:06]} 6. Qxd8+ {[%emt 0:00:27]} Kxd8 {[%emt 0:00:06]} 7. Nc3 {[%emt 0:00:36]} c6 {[%emt 0:02:22]} 8. Be3 {[%emt 0:02:01]} f6 {[%emt 0:02:00]} 9. O-O-O+ {[%emt 0:00:27]} Nd7 {[%emt 0:01:40]} 10. Ne4 {[%emt 0:00:47]} Ke7 {[%emt 0:05:44]} 11. Rd2 {[%emt 0:01:07]} Bh6 {[%emt 0:00:24]} 12. Bxh6 {[%emt 0:02:20]} Nxh6 {[%emt 0:00:01]} 13. Rhd1 {[%emt 0:01:30]} Nf7 {[%emt 0:02:26]} 14. c4 {[%emt 0:09:29]} Nb6 {[%emt 0:18:11]} 15. b3 {[%emt 0:00:17]} Bf5 {[%emt 0:01:32]} 16. Nc5 {[%emt 0:00:25]} Rab8 {[%emt 0:01:40]} 17. Nh4 {[%emt 0:00:34]} Bc8 {[%emt 0:04:33]} 18. f4 {[%emt 0:01:18]} exf4 {[%emt 0:02:35]} 19. gxf4 {[%emt 0:00:10]} Rd8 {[%emt 0:00:21]} 20. Nf3 {[%emt 0:02:15]} Rxd2 {[%emt 0:03:52]} 21. Rxd2 {[%emt 0:00:25]} Nd7 {[%emt 0:06:25]} 22. Ne4 {[%emt 0:01:40]} Nf8 {[%emt 0:03:26]} 23. Nd4 {[%emt 0:02:20]} Ne6 {[%emt 0:04:32]} 24. Nxe6 {[%emt 0:00:38]} Bxe6 {[%emt 0:01:29]} 25. Nc5 {[%emt 0:00:12]} f5 {[%emt 0:05:14]} 26. Kc2 {[%emt 0:03:26]} Nd6 {[%emt 0:05:24]} 27. e3 {[%emt 0:02:54]} h6 {[%emt 0:01:16]} 28. h4 {[%emt 0:01:36]} Rg8 {[%emt 0:06:25]} 29. Nd3 {[%emt 0:02:00]} g5 {[%emt 0:05:47]} 30. hxg5 {[%emt 0:01:14]} hxg5 {[%emt 0:00:05]} 31. fxg5 {[%emt 0:00:39]} Rxg5 {[%emt 0:00:01]} 32. Nf4 {[%emt 0:00:39]} Bd7 {[%emt 0:08:41]} 33. Kd3 {[%emt 0:02:55]} Nf7 {[%emt 0:00:59]} 34. Rd1 {[%emt 0:01:43]} Ne5+ {[%emt 0:03:05]} 35. Ke2 {[%emt 0:01:24]} Ng6 {[%emt 0:01:00]} 36. Bf3 {[%emt 0:00:37]} Nxf4+ {[%emt 0:00:37]} 37. exf4 {[%emt 0:00:07]} Rg7 {[%emt 0:01:02]} 38. Ke3 {[%emt 0:01:26]} Rh7 {[%emt 0:00:54]} 39. Rh1 {[%emt 0:00:22]} Rxh1 {[%emt 0:00:23]} 40. Bxh1 {[%emt 0:00:06]} Kd6 {[%emt 0:00:18]} 41. Kd4 {[%emt 0:32:27]} b6 {[%emt 0:31:14]} 42. Bf3 {[%emt 0:00:35]} Be8 {[%emt 0:00:24]} 1/2-1/2

[Event "NOR-ch Various 2019"]
[Site "Larvik"]
[Date "2019.07.12"]
[Round "8.17"]
[White "Heier, Odin Nikolai"]
[Black "Sebastian, Andreas"]
[Result "1-0"]
[ECO "A41"]
[WhiteElo "1863"]
[BlackElo "1911"]
[Annotator "NA"]
[PlyCount "59"]
[EventDate "2019.07.06"]
[EventType "swiss"]
[EventCountry "NOR"]
[SourceTitle "playchess.com"]
[Source "ChessBase"]
[SourceQuality "1"]
[TimeControl "40/5400+30:1800+30"]

1. d4 {[%emt 0:00:00]} d6 {[%emt 0:00:00]} 2. Bf4 {[%emt 0:00:00]} g6 {[%emt 0:00:00]} 3. Nc3 {[%emt 0:00:55]} Nd7 {[%emt 0:00:02]} 4. Nf3 {[%emt 0:02:46]} Bg7 {[%emt 0:00:15]} 5. Qd2 {[%emt 0:06:36]} e5 {[%emt 0:02:10]} 6. dxe5 {[%emt 0:00:24]} dxe5 {[%emt 0:00:17]} 7. Bg5 {[%emt 0:00:36]} f6 {[%emt 0:00:37]} 8. Bh4 {[%emt 0:01:27]} Ne7 {[%emt 0:03:08]} 9. O-O-O {[%emt 0:03:59]} O-O {[%emt 0:01:37]} 10. e4 {[%emt 0:03:53]} Kh8 {[%emt 0:01:39]} 11. Bc4 {[%emt 0:07:01]} Nc6 {[%emt 0:11:32]} 12. Bb5 {[%emt 0:24:41]} Nc5 {[%emt 0:05:43]} 13. Qe3 {[%emt 0:12:14]} Nd7 {[%emt 0:10:49]} 14. Bxc6 {[%emt 0:04:00]} bxc6 {[%emt 0:00:08]} 15. Nxe5 {[%emt 0:00:58]} Qe8 {[%emt 0:01:07]} 16. Nxc6 {[%emt 0:02:29]} Bb7 {[%emt 0:06:21]} 17. Na5 {[%emt 0:02:18]} Rb8 {[%emt 0:00:59]} 18. Bg3 {[%emt 0:09:47]} Qe6 {[%emt 0:04:20]} 19. Bxc7 {[%emt 0:07:20]} Rbc8 {[%emt 0:01:03]} 20. Bd6 {[%emt 0:01:04]} Ba8 {[%emt 0:07:52]} 21. Bxf8 {[%emt 0:00:18]} Bxf8 {[%emt 0:00:06]} 22. Nb3 {[%emt 0:02:25]} Ne5 {[%emt 0:01:15]} 23. h4 {[%emt 0:01:41]} a5 {[%emt 0:01:11]} 24. Nxa5 {[%emt 0:02:34]} Bb4 {[%emt 0:00:21]} 25. Nb3 {[%emt 0:00:18]} Qa6 {[%emt 0:04:45]} 26. Qd4 {[%emt 0:02:14]} Bxc3 {[%emt 0:07:28]} 27. bxc3 {[%emt 0:00:06]} Nc4 {[%emt 0:00:11]} 28. Rd3 {[%emt 0:01:05]} Qxa2 {[%emt 0:00:17]} 29. Qxf6+ {[%emt 0:00:43]} Kg8 {[%emt 0:00:06]} 30. Rd8+ {[%emt 0:00:30]} 1-0

[Event "NOR-ch Various 2019"]
[Site "Larvik"]
[Date "2019.07.12"]
[Round "8.18"]
[White "Opseth, Oliver"]
[Black "Kizatbay, Abyl"]
[Result "0-1"]
[ECO "D93"]
[WhiteElo "1714"]
[BlackElo "2216"]
[Annotator "NA"]
[PlyCount "66"]
[EventDate "2019.07.06"]
[EventType "swiss"]
[EventCountry "NOR"]
[SourceTitle "playchess.com"]
[Source "ChessBase"]
[SourceQuality "1"]
[TimeControl "40/5400+30:1800+30"]

1. d4 {[%emt 0:00:00]} Nf6 {[%emt 0:00:00]} 2. Bf4 {[%emt 0:00:00]} g6 {[%emt 0:00:00]} 3. Nf3 {[%emt 0:00:00]} Bg7 {[%emt 0:00:00]} 4. c4 {[%emt 0:01:05]} O-O {[%emt 0:04:51]} 5. Nc3 {[%emt 0:00:21]} d5 {[%emt 0:01:46]} 6. e3 {[%emt 0:09:41]} c5 {[%emt 0:12:22]} 7. Be2 {[%emt 0:03:29]} cxd4 {[%emt 0:02:16]} 8. Nxd4 {[%emt 0:02:26]} dxc4 {[%emt 0:02:29]} 9. Bxc4 {[%emt 0:01:04]} Qb6 {[%emt 0:02:17]} 10. Qd2 {[%emt 0:07:36]} Nbd7 {[%emt 0:14:50]} 11. Na4 {[%emt 0:09:06]} Qd8 {[%emt 0:01:21]} 12. Nf3 {[%emt 0:03:26]} Nh5 {[%emt 0:03:11]} 13. Bg5 {[%emt 0:04:08]} h6 {[%emt 0:01:15]} 14. Bh4 {[%emt 0:04:38]} g5 {[%emt 0:01:51]} 15. Bg3 {[%emt 0:07:51]} Nxg3 {[%emt 0:01:58]} 16. hxg3 {[%emt 0:00:27]} Nb6 {[%emt 0:09:01]} 17. Qc2 {[%emt 0:11:15]} Nxc4 {[%emt 0:01:40]} 18. Qxc4 {[%emt 0:00:24]} Qa5+ {[%emt 0:01:17]} 19. Nc3 {[%emt 0:00:25]} Be6 {[%emt 0:01:42]} 20. Qd3 {[%emt 0:00:07]} Rfd8 {[%emt 0:00:49]} 21. Qc2 {[%emt 0:00:04]} Rac8 {[%emt 0:00:53]} 22. O-O {[%emt 0:02:06]} b5 {[%emt 0:05:31]} 23. a3 {[%emt 0:00:54]} Bxc3 {[%emt 0:03:41]} 24. bxc3 {[%emt 0:00:12]} Qxc3 {[%emt 0:00:21]} 25. Qe4 {[%emt 0:01:10]} Qd3 {[%emt 0:05:45]} 26. Qb7 {[%emt 0:00:50]} Qd7 {[%emt 0:00:54]} 27. Qa6 {[%emt 0:01:37]} Kg7 {[%emt 0:01:58]} 28. Rfd1 {[%emt 0:03:41]} Qxd1+ {[%emt 0:02:01]} 29. Rxd1 {[%emt 0:00:04]} Rxd1+ {[%emt 0:00:04]} 30. Kh2 {[%emt 0:00:02]} g4 {[%emt 0:00:39]} 31. Qxb5 {[%emt 0:04:51]} Rcc1 {[%emt 0:01:12]} 32. Qe5+ {[%emt 0:00:08]} f6 {[%emt 0:00:22]} 33. Qxe6 {[%emt 0:00:10]} Rh1# {[%emt 0:00:42]} 0-1

[Event "NOR-ch Various 2019"]
[Site "Larvik"]
[Date "2019.07.12"]
[Round "8.19"]
[White "Nordquelle, Daniel"]
[Black "Melaa, Sondre"]
[Result "0-1"]
[ECO "C90"]
[WhiteElo "2181"]
[BlackElo "2118"]
[Annotator "NA"]
[PlyCount "80"]
[EventDate "2019.07.06"]
[EventType "swiss"]
[EventCountry "NOR"]
[SourceTitle "playchess.com"]
[Source "ChessBase"]
[SourceQuality "1"]
[TimeControl "40/5400+30:1800+30"]

1. e4 {[%emt 0:00:52]} e5 {[%emt 0:00:00]} 2. Nf3 {[%emt 0:00:11]} Nc6 {[%emt 0:01:23]} 3. Bc4 {[%emt 0:00:05]} Nf6 {[%emt 0:00:09]} 4. d3 {[%emt 0:00:04]} Be7 {[%emt 0:00:12]} 5. O-O {[%emt 0:00:11]} O-O {[%emt 0:00:50]} 6. Re1 {[%emt 0:00:22]} d6 {[%emt 0:00:50]} 7. c3 {[%emt 0:00:03]} Na5 {[%emt 0:04:14]} 8. Bb5 {[%emt 0:02:30]} a6 {[%emt 0:00:50]} 9. Ba4 {[%emt 0:00:05]} b5 {[%emt 0:00:11]} 10. Bc2 {[%emt 0:00:04]} c5 {[%emt 0:02:41]} 11. Nbd2 {[%emt 0:00:41]} Re8 {[%emt 0:02:01]} 12. Nf1 {[%emt 0:00:46]} h6 {[%emt 0:00:40]} 13. h3 {[%emt 0:01:39]} Bf8 {[%emt 0:01:28]} 14. Ng3 {[%emt 0:12:36]} g6 {[%emt 0:08:13]} 15. Nh2 {[%emt 0:02:58]} Bg7 {[%emt 0:02:56]} 16. Ng4 {[%emt 0:00:49]} Nxg4 {[%emt 0:04:33]} 17. hxg4 {[%emt 0:00:11]} Qh4 {[%emt 0:00:25]} 18. g5 {[%emt 0:04:34]} hxg5 {[%emt 0:01:52]} 19. a4 {[%emt 0:01:59]} Bg4 {[%emt 0:03:41]} 20. Qd2 {[%emt 0:00:25]} Bf6 {[%emt 0:00:35]} 21. Nf1 {[%emt 0:04:35]} Kg7 {[%emt 0:04:29]} 22. f3 {[%emt 0:00:31]} Be6 {[%emt 0:02:37]} 23. g3 {[%emt 0:00:18]} Qh5 {[%emt 0:03:01]} 24. g4 {[%emt 0:02:45]} Qh3 {[%emt 0:04:03]} 25. Qg2 {[%emt 0:02:48]} Qxg2+ {[%emt 0:00:13]} 26. Kxg2 {[%emt 0:00:03]} Reb8 {[%emt 0:15:03]} 27. axb5 {[%emt 0:01:29]} axb5 {[%emt 0:00:53]} 28. Bd2 {[%emt 0:02:44]} Bb3 {[%emt 0:20:11]} 29. Bxb3 {[%emt 0:03:52]} Nxb3 {[%emt 0:01:04]} 30. Rxa8 {[%emt 0:00:29]} Rxa8 {[%emt 0:00:08]} 31. Be3 {[%emt 0:00:42]} Ra2 {[%emt 0:02:14]} 32. Rb1 {[%emt 0:00:01]} Bd8 {[%emt 0:03:13]} 33. Nd2 {[%emt 0:02:31]} Na5 {[%emt 0:06:27]} 34. Kf2 {[%emt 0:04:19]} f6 {[%emt 0:03:12]} 35. Ke2 {[%emt 0:03:44]} Nc6 {[%emt 0:00:22]} 36. Nb3 {[%emt 0:00:55]} Bc7 {[%emt 0:01:06]} 37. Ra1 {[%emt 0:06:09]} Rxb2+ {[%emt 0:00:24]} 38. Nd2 {[%emt 0:00:43]} Ba5 {[%emt 0:00:34]} 39. Ra3 {[%emt 0:00:46]} b4 {[%emt 0:00:33]} 40. cxb4 {[%emt 0:00:22]} Bxb4 {[%emt 0:00:43]} 0-1

[Event "NOR-ch Various 2019"]
[Site "Larvik"]
[Date "2019.07.12"]
[Round "8.20"]
[White "Bruaset, Eivind"]
[Black "Sjoberg, Isak"]
[Result "1/2-1/2"]
[ECO "C55"]
[WhiteElo "2074"]
[BlackElo "2182"]
[Annotator "ChessBase"]
[PlyCount "48"]
[EventDate "2019.07.06"]
[EventType "swiss"]
[EventCountry "NOR"]
[SourceTitle "playchess.com"]
[Source "ChessBase"]
[SourceQuality "1"]
[TimeControl "40/5400+30:1800+30"]

1. e4 {[%emt 0:01:56]} e5 {[%emt 0:02:07]} 2. Nf3 {[%emt 0:00:00]} Nc6 {[%emt 0:00:07]} 3. Bc4 {[%emt 0:00:00]} Nf6 {[%emt 0:00:31]} 4. d3 {[%emt 0:00:00]} Be7 {[%emt 0:02:09]} 5. O-O {[%emt 0:00:00]} O-O {[%emt 0:00:10]} 6. Re1 {[%emt 0:00:00]} d6 {[%emt 0:00:28]} 7. a4 {[%emt 0:00:00]} Na5 {[%emt 0:08:54]} 8. Ba2 {[%emt 0:00:00]} c5 {[%emt 0:00:09]} 9. c3 {[%emt 0:00:00]} Be6 {[%emt 0:00:05]} 10. b4 {[%emt 0:03:58]} Bxa2 {[%emt 0:09:28]} 11. Rxa2 {[%emt 0:00:27]} cxb4 {[%emt 0:01:47]} 12. cxb4 {[%emt 0:00:21]} Nc6 {[%emt 0:00:44]} 13. b5 {[%emt 0:08:23]} Nb8 {[%emt 0:07:47]} 14. Nbd2 {[%emt 0:03:03]} a6 {[%emt 0:07:47]} 15. bxa6 {[%emt 0:05:50]} Rxa6 {[%emt 0:00:15]} 16. Ba3 {[%emt 0:03:25]} Qd7 {[%emt 0:05:12]} 17. Nc4 {[%emt 0:01:33]} Nc6 {[%emt 0:09:11]} 18. Qb3 {[%emt 0:01:39]} Na5 {[%emt 0:00:53]} 19. Nxa5 {[%emt 0:00:11]} Rxa5 {[%emt 0:00:16]} 20. Bb4 {[%emt 0:01:33]} Ra6 {[%emt 0:02:06]} 21. Bd2 {[%emt 0:00:24]} Rfa8 {[%emt 0:01:13]} 22. Rb1 {[%emt 0:02:02]} Rxa4 {[%emt 0:09:13]} 23. Rxa4 {[%emt 0:00:14]} Rxa4 {[%emt 0:00:13]} 24. Qxb7 {[%emt 0:00:36]} Qxb7 {[%emt 0:01:27]} 1/2-1/2

[Event "NOR-ch Various 2019"]
[Site "Larvik"]
[Date "2019.07.12"]
[Round "8.21"]
[White "Kjaras, Alf Marius"]
[Black "Nielsen, Andre"]
[Result "0-1"]
[ECO "A47"]
[WhiteElo "1860"]
[BlackElo "2229"]
[Annotator "NA"]
[PlyCount "116"]
[EventDate "2019.07.06"]
[EventType "swiss"]
[EventCountry "NOR"]
[SourceTitle "playchess.com"]
[Source "ChessBase"]
[SourceQuality "1"]
[TimeControl "40/5400+30:1800+30"]

1. d4 {[%emt 0:00:00]} Nf6 {[%emt 0:00:00]} 2. Nf3 {[%emt 0:00:00]} b6 {[%emt 0:00:00]} 3. c3 {[%emt 0:00:30]} Bb7 {[%emt 0:00:27]} 4. Bg5 {[%emt 0:02:37]} e6 {[%emt 0:04:51]} 5. e3 {[%emt 0:00:47]} h6 {[%emt 0:01:05]} 6. Bh4 {[%emt 0:00:09]} g5 {[%emt 0:07:45]} 7. Bg3 {[%emt 0:00:05]} Ne4 {[%emt 0:00:19]} 8. Ne5 {[%emt 0:07:42]} Nxg3 {[%emt 0:06:03]} 9. hxg3 {[%emt 0:00:29]} Bg7 {[%emt 0:11:46]} 10. f4 {[%emt 0:15:39]} Bxe5 {[%emt 0:21:59]} 11. dxe5 {[%emt 0:04:37]} Qe7 {[%emt 0:00:24]} 12. Nd2 {[%emt 0:06:10]} Nc6 {[%emt 0:03:14]} 13. Ne4 {[%emt 0:03:45]} O-O-O {[%emt 0:03:48]} 14. Qa4 {[%emt 0:02:18]} Kb8 {[%emt 0:01:23]} 15. Rd1 {[%emt 0:04:07]} Na5 {[%emt 0:05:59]} 16. Nf6 {[%emt 0:08:05]} d6 {[%emt 0:03:47]} 17. b4 {[%emt 0:18:37]} Nc6 {[%emt 0:04:17]} 18. b5 {[%emt 0:02:14]} Na5 {[%emt 0:01:02]} 19. Ne4 {[%emt 0:03:18]} dxe5 {[%emt 0:02:30]} 20. Rxd8+ {[%emt 0:01:31]} Qxd8 {[%emt 0:02:13]} 21. fxe5 {[%emt 0:00:42]} Qd5 {[%emt 0:01:00]} 22. Nf6 {[%emt 0:01:07]} Qd8 {[%emt 0:01:23]} 23. Qd4 {[%emt 0:00:52]} Qe7 {[%emt 0:02:08]} 24. Qb4 {[%emt 0:01:19]} c5 {[%emt 0:01:29]} 25. Qb1 {[%emt 0:01:43]} Qc7 {[%emt 0:00:53]} 26. Qb2 {[%emt 0:03:24]} c4 {[%emt 0:02:00]} 27. Kf2 {[%emt 0:02:11]} Bc8 {[%emt 0:02:35]} 28. Qd2 {[%emt 0:02:53]} Rd8 {[%emt 0:01:41]} 29. Qc2 {[%emt 0:00:09]} Qxe5 {[%emt 0:03:27]} 30. Rxh6 {[%emt 0:01:35]} Qf5+ {[%emt 0:00:45]} 31. Qxf5 {[%emt 0:00:08]} exf5 {[%emt 0:00:06]} 32. Ke1 {[%emt 0:01:51]} Rd6 {[%emt 0:01:05]} 33. Ng8 {[%emt 0:02:47]} Rxh6 {[%emt 0:00:53]} 34. Nxh6 {[%emt 0:00:04]} Be6 {[%emt 0:00:07]} 35. g4 {[%emt 0:01:00]} fxg4 {[%emt 0:00:32]} 36. e4 {[%emt 0:00:32]} Nb7 {[%emt 0:01:29]} 37. e5 {[%emt 0:01:22]} Nc5 {[%emt 0:00:36]} 38. Be2 {[%emt 0:01:21]} g3 {[%emt 0:01:59]} 39. Bg4 {[%emt 0:00:46]} Nd3+ {[%emt 0:00:58]} 40. Ke2 {[%emt 0:00:57]} Nxe5 {[%emt 0:01:01]} 41. Bxe6 {[%emt 0:30:36]} fxe6 {[%emt 0:30:09]} 42. Ke3 {[%emt 0:00:00]} Ng6 {[%emt 0:00:00]} 43. Nf7 {[%emt 0:00:00]} g4 {[%emt 0:00:00]} 44. Nh6 {[%emt 0:00:00]} Nh4 {[%emt 0:00:00]} 45. Nxg4 {[%emt 0:00:00]} Nxg2+ {[%emt 0:00:00]} 46. Kf3 {[%emt 0:00:00]} Nf4 {[%emt 0:00:00]} 47. Ne3 {[%emt 0:00:00]} Nd5 {[%emt 0:00:00]} 48. Nd1 {[%emt 0:00:00]} Kc7 {[%emt 0:00:00]} 49. Kxg3 {[%emt 0:00:00]} Kd6 {[%emt 0:00:00]} 50. Kf3 {[%emt 0:00:00]} Ke5 {[%emt 0:00:00]} 51. a4 {[%emt 0:00:00]} Kf5 {[%emt 0:00:00]} 52. Nb2 {[%emt 0:00:00]} Nxc3 {[%emt 0:00:00]} 53. Nxc4 {[%emt 0:00:00]} Nxa4 {[%emt 0:00:00]} 54. Nd6+ {[%emt 0:00:00]} Ke5 {[%emt 0:00:09]} 55. Nc8 {[%emt 0:00:00]} Kd4 {[%emt 0:06:16]} 56. Nxa7 {[%emt 0:00:00]} Kc5 {[%emt 0:00:57]} 57. Nc6 {[%emt 0:00:00]} Nc3 {[%emt 0:01:03]} 58. Nd8 {[%emt 0:00:00]} Kd5 {[%emt 0:00:14]} 0-1